lending/lending_fUSD_20240507
["ID","MTS","AMOUNT","RATE_DAILY","PERIOD"]
[326569868,1715113838267,-446.59,0.00010861,2]
[326569869,1715113838279,-446.59,0.0001089,2]
[326569870,1715113838290,-293.0,0.00010915,2]
[326569871,1715113838300,-446.59,0.00010919,2]
[326569872,1715113838311,-439.98,0.00010927,2]
[326569873,1715113838322,-446.59,0.00010948,2]
[326569874,1715113838332,-150.0,0.00010959,2]
[326569875,1715113838343,-1354.35,0.00010959,2]
[326569876,1715113838354,-4814.48,0.00010977,2]
[326569877,1715113838365,-446.59,0.00010977,2]
[326569878,1715113838376,-166.78278404,0.00011,2]
[326569879,1715113838386,-446.59,0.00011006,2]
[326569880,1715113838396,-277.77,0.00011021,2]
[326569881,1715113838406,-446.59,0.00011035,2]
[326569882,1715113838417,-446.59,0.00011064,2]
[326569883,1715113838427,-446.59,0.00011093,2]
[326569884,1715113838437,-446.59,0.00011122,2]
[326569885,1715113838447,-200.0,0.00011845,2]
[326569886,1715113838457,-10973.05,0.00011865,2]
[326569887,1715113838467,-500.0,0.000119,4]
[326569888,1715113838478,-181.7670218,0.00011991,2]
[326569889,1715113838489,-2285.20732353,0.00012,2]
[326569890,1715113838500,-150.63,0.00012,2]
[326569891,1715113838511,-225.0,0.00012007,2]
[326569892,1715113838522,-167.17,0.00012033,2]
[326569893,1715113838533,-23900.0,0.00012091,2]
[326569894,1715113838544,-2653.15,0.00012112,2]
[326569895,1715113838555,-439.98,0.00012141,2]
[326569896,1715113838565,-358.43333782,0.00012178,2]
[326569897,1715113838576,-155.26575215,0.00012178,2]
[326569898,1715113838586,-239.42577122,0.00012178,2]
[326569899,1715113838597,-1212.39834275,0.00012178,2]
[326569900,1715113838607,-265.54809514,0.00012178,2]
[326569901,1715113838617,-150.63,0.00012343,2]
[326569902,1715113838628,-175.3,0.00012393,2]
[326569903,1715113838638,-1000.0,0.00012899,2]
[326569904,1715113838648,-544.09764871,0.000129,2]
[326569905,1715113838658,-245.95,0.00013151,2]
[326569906,1715113838668,-313.18,0.00013151,2]
[326569907,1715113838678,-260.98,0.00013151,2]
[326569908,1715113838688,-217.49,0.00013151,2]
[326569909,1715113838698,-181.24,0.00013151,2]
[326569910,1715113838708,-151.03,0.00013151,2]
[326569912,1715113838718,-439.98,0.00013355,2]
[326569914,1715113838728,-2751.0,0.00013699,2]
[326569915,1715113838739,-200.0,0.00013699,2]
[326569918,1715113838749,-500.0,0.00013699,2]
[326569920,1715113838760,-12278.56,0.00013699,2]
[326569922,1715113838770,-544.09764871,0.00014242,2]
[326569924,1715113838781,-439.98,0.00014569,2]
[326569926,1715113838791,-10973.05,0.00014604,2]
[326569928,1715113838801,-1540.42461949,0.00014626,2]
[326569930,1715113838811,-872.57,0.00014807,2]
[326569932,1715113838822,-155.00408411,0.00015,2]
[326569935,1715113838832,-618.22068598,0.00015,2]
[326569937,1715113838843,-27613.0,0.00015,2]
[326569939,1715113838853,-300.0,0.00015068,2]
[326569941,1715113838863,-150.63,0.0001549,2]
[326569943,1715113838873,-17699.0,0.000155,3]
[326569945,1715113838883,-181.76702178,0.00015535,2]
[326569947,1715113838894,-544.09764871,0.00015685,2]
[326569950,1715113838905,-167.0,0.00015831,2]
[326569952,1715113838915,-17699.0,0.00016,5]
[326569954,1715113838926,-781.6756597,0.00016,2]
[326569956,1715113838936,-406.5353,0.00016027,2]
[326569958,1715113838948,-157.93592244,0.00016047,2]
[326569960,1715113838959,-4751.79,0.00016116,2]
[326569962,1715113838970,-167.0,0.00016354,2]
[326569965,1715113838981,-300.0,0.00016438,2]
[326569967,1715113838991,-1037.38,0.00016438,2]
[326569969,1715113839002,-157.57856048,0.00016451,2]
[326569971,1715113839013,-152.85545384,0.00016456,2]
[326569973,1715113839024,-155.95646156,0.00016478,2]
[326569975,1715113839037,-481.61,0.00016639,2]
[326570013,1715113839398,-872.57,0.00016658,2]
[326570016,1715113839425,-175.46,0.00016712,2]
[326570019,1715113839440,-349.95,0.00016845,2]
[326570021,1715113839451,-167.0,0.00016876,2]
[326570023,1715113839460,-1749.0834379,0.00017,2]
[326570025,1715113839470,-3722.0,0.00017,2]
[326570027,1715113839479,-159.17705713,0.00017083,2]
[326570029,1715113839490,-544.09764871,0.00017128,2]
[326570031,1715113839499,-155.95646156,0.00017221,2]
[326570033,1715113839509,-152.85545384,0.0001727,2]
[326570035,1715113839518,-167.0,0.00017399,2]
[326570037,1715113839528,-164.24,0.00017493,2]
[326570039,1715113839538,-150.63,0.0001787,2]
[326570041,1715113839547,-4915.39282843,0.0001788,2]
[326570043,1715113839557,-936.04984772,0.0001788,2]
[326570045,1715113839567,-4915.39282842,0.0001788,2]
[326570047,1715113839577,-936.0498477,0.0001788,2]
[326570049,1715113839586,-4915.39282842,0.0001788,2]
[326570051,1715113839595,-936.0498477,0.0001788,2]
[326570053,1715113839605,-4915.39282842,0.0001788,2]
[326570055,1715113839615,-936.0498477,0.0001788,2]
[326570057,1715113839625,-4915.39282842,0.0001788,2]
[326570059,1715113839636,-936.0498477,0.0001788,2]
[326570061,1715113839645,-167.0,0.00017921,2]
[326570063,1715113839655,-750.0,0.00018,3]
[326570065,1715113839664,-4915.39282842,0.00018052,2]
[326570067,1715113839674,-936.0498477,0.00018052,2]
[326570069,1715113839684,-300.0,0.00018378,2]
[326570071,1715113839694,-152.85545384,0.00018405,2]
[326570073,1715113839704,-6787.6748,0.00018422,2]
[326570075,1715113839714,-167.0,0.00018444,2]
[326570077,1715113839723,-872.57,0.00018509,2]
[326570079,1715113839735,-1225.21326046,0.00018522,2]
[326570081,1715113839745,-259.44115044,0.00018522,2]
[326570083,1715113839755,-271.53173344,0.00018522,2]
[326570085,1715113839765,-551.86154387,0.00018522,2]
[326570087,1715113839775,-12736.57642091,0.00018522,2]
[326570089,1715113839784,-4419.3719452,0.00018523,2]
[326570091,1715113839795,-544.09764871,0.00018571,2]
[326570093,1715113839805,-237.176223,0.0001863,2]
[326570095,1715113839815,-166.45534,0.0001869,2]
[326570097,1715113839825,-5553.55999122,0.00018786,2]
[326570099,1715113839835,-7500.0,0.0001879,2]
[326570101,1715113839845,-302.79001876,0.000188,2]
[326570103,1715113839856,-1540.42461949,0.000188,2]
[326570105,1715113839866,-1100.0,0.000188,6]
[326570107,1715113839876,-356.34350887,0.00018819,2]
[326570109,1715113839886,-150.63,0.0001888,2]
[326570111,1715113839896,-150.63,0.0001888,2]
[326570113,1715113839906,-150.63,0.0001888,2]
[326570115,1715113839916,-150.63,0.0001888,2]
[326570117,1715113839926,-150.63,0.0001888,2]
[326570119,1715113839936,-150.63,0.0001888,2]
[326570121,1715113839946,-150.63,0.0001888,2]
[326570123,1715113839956,-1996.8608,0.0001889,2]
[326570125,1715113839966,-498908.4993,0.0001889,2]
[326570127,1715113839976,-1700.0,0.000189,6]
[326570129,1715113839987,-349.95,0.00018951,2]
[326570131,1715113839997,-194.00301164,0.00019,2]
[326570133,1715113840008,-5737.74953066,0.00019078,2]
[326570135,1715113840018,-181.76702178,0.00019078,2]
[326570137,1715113840034,-500.0,0.00019078,2]
[326570140,1715113840044,-558.78782629,0.00019159,2]
[326570142,1715113840055,-150.63,0.00019168,2]
[326570144,1715113840065,-150.63,0.00019168,2]
[326570145,1715113840077,-150.63,0.00019168,2]
[326570147,1715113840087,-166.78278404,0.00019168,2]
[326570149,1715113840098,-157.51876589,0.00019176,2]
[326570151,1715113840109,-155.54694532,0.00019176,2]
[326570152,1715113840120,-237.17351593,0.00019177,2]
[326570153,1715113840130,-251.68391057,0.00019177,2]
[326570154,1715113840140,-500.0,0.00019178,2]
[326570155,1715113840150,-1002.80210193,0.00019178,2]
[326570156,1715113840160,-339.54441487,0.00019178,2]
[326570157,1715113840170,-500.0,0.00019178,2]
[326570158,1715113840180,-500.0,0.00019178,2]
[326570159,1715113840190,-500.0,0.00019178,2]
[326570160,1715113840200,-500.0,0.00019178,2]
[326570161,1715113840211,-500.0,0.00019178,2]
[326570162,1715113840220,-500.0,0.00019178,2]
[326570163,1715113840231,-500.0,0.00019178,2]
[326570164,1715113840241,-500.0,0.00019178,2]
[326570165,1715113840251,-344.35282737,0.00019178,2]
[326570166,1715113840261,-500.0,0.00019178,2]
[326570167,1715113840271,-500.0,0.00019178,2]
[326570169,1715113840281,-500.0,0.00019178,2]
[326570171,1715113840292,-500.0,0.00019178,2]
[326570174,1715113840302,-303.87383518,0.00019178,2]
[326570176,1715113840313,-500.0,0.00019178,2]
[326570180,1715113840323,-176.62054839,0.00019178,2]
[326570182,1715113840333,-500.0,0.00019178,2]
[326570184,1715113840343,-500.0,0.00019178,2]
[326570186,1715113840353,-321.19914798,0.00019178,2]
[326570188,1715113840364,-500.0,0.00019178,2]
[326570190,1715113840374,-500.0,0.00019178,2]
[326570192,1715113840384,-500.0,0.00019178,2]
[326570194,1715113840394,-500.0,0.00019178,2]
[326570196,1715113840404,-500.0,0.00019178,2]
[326570198,1715113840414,-500.0,0.00019178,2]
[326570200,1715113840424,-500.0,0.00019178,2]
[326570201,1715113840435,-237.66000922,0.00019178,2]
[326570202,1715113840445,-500.0,0.00019178,2]
[326570203,1715113840456,-500.0,0.00019178,2]
[326570204,1715113840466,-500.0,0.00019178,2]
[326570205,1715113840476,-500.0,0.00019178,2]
[326570206,1715113840487,-500.0,0.00019178,2]
[326570207,1715113840498,-500.0,0.00019178,2]
[326570208,1715113840509,-500.0,0.00019178,2]
[326570209,1715113840520,-500.0,0.00019178,2]
[326570210,1715113840532,-500.0,0.00019178,2]
[326570211,1715113840542,-500.0,0.00019178,2]
[326570212,1715113840553,-555.62,0.00019178,2]
[326570213,1715113840562,-500.0,0.00019178,2]
[326570214,1715113840573,-500.0,0.00019178,2]
[326570215,1715113840583,-500.0,0.00019178,2]
[326570216,1715113840593,-500.0,0.00019178,2]
[326570217,1715113840603,-500.0,0.00019178,2]
[326570218,1715113840613,-500.0,0.00019178,2]
[326570219,1715113840623,-500.0,0.00019178,2]
[326570220,1715113840634,-500.0,0.00019178,2]
[326570221,1715113840644,-645.0046332,0.00019178,2]
[326570222,1715113840655,-500.0,0.00019178,2]
[326570223,1715113840666,-500.0,0.00019178,2]
[326570224,1715113840678,-500.0,0.00019178,2]
[326570225,1715113840688,-323.13359115,0.00019178,2]
[326570226,1715113840700,-500.0,0.00019178,2]
[326570227,1715113840710,-500.0,0.00019178,2]
[326570228,1715113840721,-500.0,0.00019178,2]
[326570229,1715113840731,-500.0,0.00019178,2]
[326570230,1715113840741,-500.0,0.00019178,2]
[326570231,1715113840751,-500.0,0.00019178,2]
[326570232,1715113840761,-500.0,0.00019178,2]
[326570233,1715113840772,-500.0,0.00019178,2]
[326570234,1715113840782,-500.0,0.00019178,2]
[326570235,1715113840792,-500.0,0.00019178,2]
[326570236,1715113840802,-500.0,0.00019178,2]
[326570237,1715113840812,-500.0,0.00019178,2]
[326570238,1715113840822,-500.0,0.00019178,2]
[326570239,1715113840832,-500.0,0.00019178,2]
[326570240,1715113840841,-500.0,0.00019178,2]
[326570241,1715113840851,-500.0,0.00019178,2]
[326570242,1715113840861,-500.0,0.00019178,2]
[326570243,1715113840871,-500.0,0.00019178,2]
[326570244,1715113840881,-500.0,0.00019178,2]
[326570245,1715113840892,-500.0,0.00019178,2]
[326570246,1715113840902,-500.0,0.00019178,2]
[326570247,1715113840912,-500.0,0.00019178,2]
[326570248,1715113840922,-20000.0,0.00019178,2]
[326570249,1715113840932,-500.0,0.00019178,2]
[326570250,1715113840943,-1076.55,0.00019178,2]
[326570251,1715113840952,-500.0,0.00019178,2]
[326570252,1715113840962,-500.0,0.00019178,2]
[326570253,1715113840972,-188.94094651,0.00019178,2]
[326570254,1715113840982,-500.0,0.00019178,2]
[326570255,1715113840991,-500.0,0.00019178,2]
[326570256,1715113841001,-500.0,0.00019178,2]
[326570257,1715113841011,-500.0,0.00019178,2]
[326570258,1715113841023,-500.0,0.00019178,2]
[326570259,1715113841036,-500.0,0.00019178,2]
[326570260,1715113841047,-500.0,0.00019178,2]
[326570261,1715113841056,-500.0,0.00019178,2]
[326570262,1715113841067,-500.0,0.00019178,2]
[326570263,1715113841076,-500.0,0.00019178,2]
[326570264,1715113841087,-500.0,0.00019178,2]
[326570265,1715113841097,-500.0,0.00019178,2]
[326570266,1715113841108,-500.0,0.00019178,2]
[326570267,1715113841118,-500.0,0.00019178,2]
[326570268,1715113841128,-540.29,0.00019178,2]
[326570269,1715113841139,-500.0,0.00019178,2]
[326570270,1715113841149,-500.0,0.00019178,2]
[326570271,1715113841158,-500.0,0.00019178,2]
[326570272,1715113841168,-500.0,0.00019178,2]
[326570273,1715113841179,-520.30055484,0.00019178,2]
[326570274,1715113841188,-500.0,0.00019178,2]
[326570275,1715113841198,-500.0,0.00019178,2]
[326570276,1715113841208,-500.0,0.00019178,2]
[326570277,1715113841217,-500.0,0.00019178,2]
[326570278,1715113841227,-500.0,0.00019178,2]
[326570279,1715113841238,-500.0,0.00019178,2]
[326570280,1715113841248,-500.0,0.00019178,2]
[326570281,1715113841258,-500.0,0.00019178,2]
[326570282,1715113841268,-500.0,0.00019178,2]
[326570283,1715113841279,-500.0,0.00019178,2]
[326570284,1715113841288,-500.0,0.00019178,2]
[326570285,1715113841298,-500.0,0.00019178,2]
[326570286,1715113841309,-508.63,0.00019178,2]
[326570287,1715113841319,-336.35845592,0.00019178,2]
[326570288,1715113841330,-180.58281956,0.00019178,2]
[326570289,1715113841340,-207.42806727,0.00019178,2]
[326570290,1715113841350,-500.0,0.00019178,2]
[326570291,1715113841360,-500.0,0.00019178,2]
[326570292,1715113841370,-500.0,0.00019178,2]
[326570293,1715113841380,-500.0,0.00019178,2]
[326570294,1715113841390,-629.13,0.00019178,2]
[326570295,1715113841400,-500.0,0.00019178,2]
[326570296,1715113841411,-500.0,0.00019178,2]
[326570297,1715113841421,-500.0,0.00019178,2]
[326570298,1715113841431,-597.37,0.00019178,2]
[326570299,1715113841441,-268.51,0.00019178,2]
[326570300,1715113841451,-500.0,0.00019178,2]
[326570301,1715113841460,-500.0,0.00019178,2]
[326570302,1715113841471,-504.72,0.00019178,2]
[326570303,1715113841481,-500.0,0.00019178,2]
[326570304,1715113841494,-500.0,0.00019178,2]
[326570305,1715113841504,-500.0,0.00019178,2]
[326570306,1715113841514,-500.0,0.00019178,2]
[326570307,1715113841526,-500.0,0.00019178,2]
[326570308,1715113841537,-500.0,0.00019178,2]
[326570309,1715113841547,-628.13710075,0.00019178,2]
[326570310,1715113841558,-500.0,0.00019178,2]
[326570311,1715113841568,-500.0,0.00019178,2]
[326570312,1715113841579,-518.3,0.00019178,2]
[326570313,1715113841589,-587.47,0.00019178,2]
[326570314,1715113841600,-500.0,0.00019178,2]
[326570315,1715113841610,-500.0,0.00019178,2]
[326570316,1715113841620,-500.0,0.00019178,2]
[326570317,1715113841631,-500.0,0.00019178,2]
[326570318,1715113841642,-500.0,0.00019178,2]
[326570319,1715113841652,-696.01,0.00019178,2]
[326570320,1715113841662,-500.0,0.00019178,2]
[326570321,1715113841674,-393.46692935,0.00019178,2]
[326570322,1715113841684,-345.83910422,0.00019178,2]
[326570323,1715113841694,-500.0,0.00019178,2]
[326570324,1715113841703,-500.0,0.00019178,2]
[326570325,1715113841713,-500.0,0.00019178,2]
[326570326,1715113841723,-500.0,0.00019178,2]
[326570327,1715113841733,-500.0,0.00019178,2]
[326570328,1715113841744,-500.0,0.00019178,2]
[326570329,1715113841754,-500.0,0.00019178,2]
[326570330,1715113841763,-500.0,0.00019178,2]
[326570331,1715113841773,-500.0,0.00019178,2]
[326570332,1715113841783,-500.0,0.00019178,2]
[326570333,1715113841792,-500.0,0.00019178,2]
[326570334,1715113841803,-500.0,0.00019178,2]
[326570335,1715113841813,-500.0,0.00019178,2]
[326570336,1715113841823,-500.0,0.00019178,2]
[326570337,1715113841832,-500.0,0.00019178,2]
[326570338,1715113841842,-526.99,0.00019178,2]
[326570339,1715113841852,-684.15,0.00019178,2]
[326570340,1715113841862,-500.0,0.00019178,2]
[326570341,1715113841872,-500.0,0.00019178,2]
[326570342,1715113841883,-500.0,0.00019178,2]
[326570343,1715113841892,-500.37,0.00019178,2]
[326570344,1715113841902,-500.0,0.00019178,2]
[326570345,1715113841912,-521.09159986,0.00019178,2]
[326570346,1715113841922,-500.0,0.00019178,2]
[326570347,1715113841931,-500.0,0.00019178,2]
[326570348,1715113841941,-500.0,0.00019178,2]
[326570349,1715113841951,-500.0,0.00019178,2]
[326570350,1715113841960,-500.0,0.00019178,2]
[326570352,1715113841970,-582.5,0.00019178,2]
[326570354,1715113841980,-599.49,0.00019178,2]
[326570355,1715113841994,-500.0,0.00019178,2]
[326570356,1715113842004,-500.0,0.00019178,2]
[326570357,1715113842015,-500.0,0.00019178,2]
[326570358,1715113842026,-500.0,0.00019178,2]
[326570359,1715113842042,-500.0,0.00019178,2]
[326570360,1715113842052,-500.0,0.00019178,2]
[326570361,1715113842062,-500.0,0.00019178,2]
[326570362,1715113842072,-500.0,0.00019178,2]
[326570363,1715113842084,-500.0,0.00019178,2]
[326570364,1715113842094,-500.0,0.00019178,2]
[326570365,1715113842104,-500.0,0.00019178,2]
[326570366,1715113842115,-500.0,0.00019178,2]
[326570367,1715113842125,-715.61,0.00019178,2]
[326570368,1715113842135,-500.0,0.00019178,2]
[326570369,1715113842144,-500.0,0.00019178,2]
[326570370,1715113842154,-459.48996372,0.00019178,2]
[326570371,1715113842165,-500.0,0.00019178,2]
[326570372,1715113842175,-500.0,0.00019178,2]
[326570373,1715113842184,-500.0,0.00019178,2]
[326570374,1715113842194,-500.0,0.00019178,2]
[326570375,1715113842203,-500.0,0.00019178,2]
[326570376,1715113842213,-1741.3,0.00019178,2]
[326570377,1715113842223,-500.0,0.00019178,2]
[326570378,1715113842233,-535.22,0.00019178,2]
[326570379,1715113842248,-940.62,0.00019178,2]
[326570380,1715113842258,-1710.24,0.00019178,2]
[326570381,1715113842268,-693.02,0.00019178,2]
[326570382,1715113842278,-500.0,0.00019178,2]
[326570383,1715113842288,-539.68,0.00019178,2]
[326570384,1715113842298,-2788.2,0.00019178,2]
[326570385,1715113842308,-500.0,0.00019178,2]
[326570386,1715113842317,-280.71573674,0.00019178,2]
[326570387,1715113842327,-1292.34,0.00019178,2]
[326570388,1715113842336,-645.46,0.00019178,2]
[326570389,1715113842346,-500.0,0.00019178,2]
[326570390,1715113842356,-710.27,0.00019178,2]
[326570391,1715113842365,-500.0,0.00019178,2]
[326570392,1715113842374,-749.26,0.00019178,2]
[326570393,1715113842384,-500.0,0.00019178,2]
[326570394,1715113842393,-2223.0,0.00019178,2]
[326570395,1715113842404,-500.0,0.00019178,2]
[326570396,1715113842414,-500.0,0.00019178,2]
[326570397,1715113842424,-500.0,0.00019178,2]
[326570398,1715113842434,-500.0,0.00019178,2]
[326570399,1715113842443,-500.0,0.00019178,2]
[326570400,1715113842453,-500.0,0.00019178,2]
[326570401,1715113842463,-500.0,0.00019178,2]
[326570402,1715113842473,-500.0,0.00019178,2]
[326570403,1715113842483,-711.78,0.00019178,2]
[326570404,1715113842496,-547.13,0.00019178,2]
[326570405,1715113842506,-500.0,0.00019178,2]
[326570406,1715113842516,-1577.76,0.00019178,2]
[326570407,1715113842528,-680.12,0.00019178,2]
[326570408,1715113842538,-561.78,0.00019178,2]
[326570409,1715113842548,-581.76,0.00019178,2]
[326570410,1715113842557,-500.0,0.00019178,2]
[326570411,1715113842568,-609.78,0.00019178,2]
[326570412,1715113842577,-500.0,0.00019178,2]
[326570413,1715113842587,-500.0,0.00019178,2]
[326570414,1715113842597,-500.0,0.00019178,2]
[326570415,1715113842607,-500.0,0.00019178,2]
[326570416,1715113842616,-500.0,0.00019178,2]
[326570417,1715113842625,-687.99,0.00019178,2]
[326570418,1715113842636,-516.49,0.00019178,2]
[326570419,1715113842646,-4127.75,0.00019178,2]
[326570420,1715113842656,-1401.63,0.00019178,2]
[326570421,1715113842666,-799.61,0.00019178,2]
[326570422,1715113842676,-500.0,0.00019178,2]
[326570423,1715113842686,-776.79,0.00019178,2]
[326570424,1715113842696,-1437.13,0.00019178,2]
[326570425,1715113842706,-500.0,0.00019178,2]
[326570426,1715113842716,-701.01,0.00019178,2]
[326570427,1715113842726,-500.0,0.00019178,2]
[326570428,1715113842739,-500.0,0.00019178,2]
[326570429,1715113842749,-5537.35,0.00019178,2]
[326570430,1715113842759,-500.0,0.00019178,2]
[326570431,1715113842768,-853.18,0.00019178,2]
[326570432,1715113842778,-500.0,0.00019178,2]
[326570433,1715113842788,-818.27,0.00019178,2]
[326570434,1715113842797,-500.0,0.00019178,2]
[326570435,1715113842807,-558.94,0.00019178,2]
[326570436,1715113842817,-1491.2,0.00019178,2]
[326570437,1715113842826,-500.0,0.00019178,2]
[326570438,1715113842836,-727.39,0.00019178,2]
[326570439,1715113842845,-500.0,0.00019178,2]
[326570440,1715113842855,-669.61,0.00019178,2]
[326570441,1715113842865,-591.9,0.00019178,2]
[326570442,1715113843031,-500.0,0.00019178,2]
[326570443,1715113843043,-560.68,0.00019178,2]
[326570444,1715113843053,-500.0,0.00019178,2]
[326570445,1715113843063,-500.0,0.00019178,2]
[326570446,1715113843074,-1228.41,0.00019178,2]
[326570447,1715113843084,-500.0,0.00019178,2]
[326570448,1715113843093,-624.03,0.00019178,2]
[326570449,1715113843103,-500.0,0.00019178,2]
[326570450,1715113843115,-1070.76,0.00019178,2]
[326570451,1715113843126,-500.0,0.00019178,2]
[326570452,1715113843136,-500.0,0.00019178,2]
[326570453,1715113843146,-3412.33,0.00019178,2]
[326570454,1715113843155,-500.0,0.00019178,2]
[326570455,1715113843165,-500.0,0.00019178,2]
[326570456,1715113843174,-500.0,0.00019178,2]
[326570457,1715113843184,-910.86,0.00019178,2]
[326570458,1715113843194,-500.0,0.00019178,2]
[326570459,1715113843204,-500.0,0.00019178,2]
[326570460,1715113843214,-500.0,0.00019178,2]
[326570461,1715113843224,-500.0,0.00019178,2]
[326570463,1715113843234,-500.0,0.00019178,2]
[326570464,1715113843245,-500.0,0.00019178,2]
[326570466,1715113843255,-500.0,0.00019178,2]
[326570467,1715113843265,-576.45,0.00019178,2]
[326570469,1715113843275,-722.56,0.00019178,2]
[326570471,1715113843285,-1842.24,0.00019178,2]
[326570472,1715113843295,-500.0,0.00019178,2]
[326570473,1715113843305,-500.0,0.00019178,2]
[326570474,1715113843315,-1096.22,0.00019178,2]
[326570475,1715113843325,-1409.68,0.00019178,2]
[326570476,1715113843335,-611.88,0.00019178,2]
[326570477,1715113843344,-500.0,0.00019178,2]
[326570478,1715113843354,-500.0,0.00019178,2]
[326570479,1715113843363,-500.0,0.00019178,2]
[326570480,1715113843373,-838.71,0.00019178,2]
[326570481,1715113843382,-1105.09,0.00019178,2]
[326570482,1715113843392,-500.0,0.00019178,2]
[326570483,1715113843402,-500.0,0.00019178,2]
[326570484,1715113843412,-1971.37,0.00019178,2]
[326570485,1715113843422,-592.84,0.00019178,2]
[326570486,1715113843432,-686.2,0.00019178,2]
[326570487,1715113843441,-500.0,0.00019178,2]
[326570488,1715113843451,-2089.89,0.00019178,2]
[326570489,1715113843460,-576.81,0.00019178,2]
[326570490,1715113843470,-10776.78,0.00019178,2]
[326570491,1715113843480,-583.94,0.00019178,2]
[326570492,1715113843490,-500.0,0.00019178,2]
[326570493,1715113843499,-2275.2,0.00019178,2]
[326570494,1715113843508,-600.53,0.00019178,2]
[326570495,1715113843518,-500.0,0.00019178,2]
[326570496,1715113843529,-1261.59,0.00019178,2]
[326570497,1715113843540,-5265.21,0.00019178,2]
[326570498,1715113843549,-500.0,0.00019178,2]
[326570499,1715113843559,-500.0,0.00019178,2]
[326570500,1715113843569,-1054.04,0.00019178,2]
[326570501,1715113843582,-500.0,0.00019178,2]
[326570502,1715113843591,-874.16,0.00019178,2]
[326570503,1715113843602,-855.49,0.00019178,2]
[326570504,1715113843612,-500.0,0.00019178,2]
[326570505,1715113843622,-500.0,0.00019178,2]
[326570506,1715113843632,-856.23,0.00019178,2]
[326570507,1715113843642,-500.0,0.00019178,2]
[326570508,1715113843651,-500.0,0.00019178,2]
[326570509,1715113843661,-821.53,0.00019178,2]
[326570510,1715113843671,-500.0,0.00019178,2]
[326570511,1715113843681,-1392.01,0.00019178,2]
[326570512,1715113843690,-1149.21,0.00019178,2]
[326570513,1715113843700,-505.28,0.00019178,2]
[326570514,1715113843711,-794.53,0.00019178,2]
[326570515,1715113843721,-1439.95,0.00019178,2]
[326570516,1715113843732,-500.0,0.00019178,2]
[326570517,1715113843743,-500.0,0.00019178,2]
[326570518,1715113843753,-500.0,0.00019178,2]
[326570519,1715113843763,-500.0,0.00019178,2]
[326570520,1715113843773,-500.0,0.00019178,2]
[326570521,1715113843783,-1692.56,0.00019178,2]
[326570522,1715113843792,-500.0,0.00019178,2]
[326570523,1715113843802,-500.0,0.00019178,2]
[326570524,1715113843811,-1022.22,0.00019178,2]
[326570525,1715113843821,-1646.75,0.00019178,2]
[326570526,1715113843831,-724.92,0.00019178,2]
[326570527,1715113843840,-500.0,0.00019178,2]
[326570528,1715113843850,-500.0,0.00019178,2]
[326570529,1715113843860,-500.0,0.00019178,2]
[326570530,1715113843870,-500.0,0.00019178,2]
[326570531,1715113843880,-1269.99,0.00019178,2]
[326570532,1715113843889,-500.0,0.00019178,2]